[Event "*** SCC Grand Prix: Titled Tuesday Blitz"]
[Site "Chess.com"]
[Date "2020.07.07"]
[Round "8"]
[White "SARGISMV"]
[Black "Chess_Boxer123"]
[Result "1-0"]
[WhiteElo "2499"]
[BlackElo "2640"]
[TimeControl "180+1"]
[EndTime "11:36:48 PDT"]
[Termination "SARGISMV won by checkmate"]

1. c4 {[%clk 0:03:00.9]} 1... c6 {[%clk 0:02:56.2]} 2. Nc3 {[%clk 0:03:00.2]}
2... d5 {[%clk 0:02:53.9]} 3. e3 {[%clk 0:03:00.1]} 3... Nf6 {[%clk 0:02:53.5]}
4. Nf3 {[%clk 0:02:59.9]} 4... e6 {[%clk 0:02:53.9]} 5. b3 {[%clk 0:02:59.4]}
5... Bd6 {[%clk 0:02:53.7]} 6. Bb2 {[%clk 0:03:00.3]} 6... O-O {[%clk
0:02:53.7]} 7. Qc2 {[%clk 0:03:00.8]} 7... e5 {[%clk 0:02:53.2]} 8. cxd5 {[%clk
0:03:00.1]} 8... cxd5 {[%clk 0:02:54.1]} 9. Nb5 {[%clk 0:03:00.3]} 9... Nc6
{[%clk 0:02:54.4]} 10. Nxd6 {[%clk 0:02:59.9]} 10... Qxd6 {[%clk 0:02:55.3]} 11.
Be2 {[%clk 0:02:59.2]} 11... Bg4 {[%clk 0:02:54.2]} 12. h3 {[%clk 0:02:54.2]}
12... Bxf3 {[%clk 0:02:53.5]} 13. Bxf3 {[%clk 0:02:52.2]} 13... Nb4 {[%clk
0:02:42.5]} 14. Qb1 {[%clk 0:02:49.8]} 14... Rac8 {[%clk 0:02:41.1]} 15. Bc3
{[%clk 0:02:36.8]} 15... d4 {[%clk 0:02:22.8]} 16. Bxb4 {[%clk 0:02:25.5]} 16...
Qxb4 {[%clk 0:02:23.7]} 17. O-O {[%clk 0:02:21.7]} 17... e4 {[%clk 0:02:17.5]}
18. Bxe4 {[%clk 0:02:21.7]} 18... dxe3 {[%clk 0:02:15.5]} 19. Bf5 {[%clk
0:02:15]} 19... e2 {[%clk 0:01:38.3]} 20. Re1 {[%clk 0:02:09.8]} 20... Rce8
{[%clk 0:01:38.3]} 21. Qc2 {[%clk 0:01:08.2]} 21... Qd4 {[%clk 0:01:09.4]} 22.
Qd3 {[%clk 0:01:03.2]} 22... Qe5 {[%clk 0:00:46.1]} 23. Rac1 {[%clk 0:00:37.8]}
23... Re7 {[%clk 0:00:27.3]} 24. Qf3 {[%clk 0:00:30.8]} 24... Qb2 {[%clk
0:00:20.1]} 25. Rc2 {[%clk 0:00:26.5]} 25... Qd4 {[%clk 0:00:17.9]} 26. Rxe2
{[%clk 0:00:24.5]} 26... Rxe2 {[%clk 0:00:17.6]} 27. Qxe2 {[%clk 0:00:25.4]}
27... Re8 {[%clk 0:00:18.4]} 28. Qf1 {[%clk 0:00:15.7]} 28... g6 {[%clk
0:00:17.6]} 29. Bd3 {[%clk 0:00:14.9]} 29... a6 {[%clk 0:00:17.9]} 30. Be2
{[%clk 0:00:14.6]} 30... Nd5 {[%clk 0:00:18.1]} 31. Bf3 {[%clk 0:00:14.3]} 31...
Nf4 {[%clk 0:00:16.4]} 32. Bxb7 {[%clk 0:00:11.1]} 32... Nd3 {[%clk 0:00:16.6]}
33. Rc8 {[%clk 0:00:06.1]} 33... Rxc8 {[%clk 0:00:14]} 34. Bxc8 {[%clk 0:00:07]}
34... Nc5 {[%clk 0:00:13.2]} 35. Bxa6 {[%clk 0:00:06.6]} 35... Qxd2 {[%clk
0:00:13.4]} 36. Bc4 {[%clk 0:00:06.1]} 36... Qxa2 {[%clk 0:00:13.1]} 37. b4
{[%clk 0:00:06.6]} 37... Qa7 {[%clk 0:00:10.9]} 38. b5 {[%clk 0:00:07.5]} 38...
Qb6 {[%clk 0:00:08.2]} 39. Qd1 {[%clk 0:00:07.4]} 39... Ne4 {[%clk 0:00:07.4]}
40. Qd5 {[%clk 0:00:07.6]} 40... Qxf2+ {[%clk 0:00:06.8]} 41. Kh2 {[%clk
0:00:08.1]} 41... Qf4+ {[%clk 0:00:06.5]} 42. Kh1 {[%clk 0:00:07.8]} 42... Ng3+
{[%clk 0:00:06.9]} 43. Kg1 {[%clk 0:00:08.2]} 43... Nf5 {[%clk 0:00:07.4]} 44.
Qxf7+ {[%clk 0:00:07.8]} 44... Kh8 {[%clk 0:00:07.6]} 45. Qf6+ {[%clk
0:00:08.2]} 45... Ng7 {[%clk 0:00:06.4]} 46. Qxf4 {[%clk 0:00:08.4]} 46... h6
{[%clk 0:00:06.2]} 47. Qf8+ {[%clk 0:00:08.2]} 47... Kh7 {[%clk 0:00:07.1]} 48.
Qg8# {[%clk 0:00:09.1]} 1-0

[Event "*** SCC Grand Prix: Titled Tuesday Blitz"]
[Site "Chess.com"]
[Date "2020.07.07"]
[Round "8"]
[White "gross-aleks"]
[Black "Fluffey"]
[Result "1-0"]
[WhiteElo "2613"]
[BlackElo "2454"]
[TimeControl "180+1"]
[EndTime "11:36:51 PDT"]
[Termination "gross-aleks won by checkmate"]

1. c4 {[%clk 0:03:00.7]} 1... e5 {[%clk 0:02:59.4]} 2. g3 {[%clk 0:02:57.4]}
2... Nc6 {[%clk 0:02:59.6]} 3. Bg2 {[%clk 0:02:57.6]} 3... f5 {[%clk 0:03:00.2]}
4. Nc3 {[%clk 0:02:58.1]} 4... Nf6 {[%clk 0:03:00.8]} 5. d3 {[%clk 0:02:58.7]}
5... d6 {[%clk 0:03:00.9]} 6. e4 {[%clk 0:02:57.5]} 6... Be7 {[%clk 0:02:59.4]}
7. Nge2 {[%clk 0:02:57.5]} 7... O-O {[%clk 0:02:59.1]} 8. O-O {[%clk 0:02:57.5]}
8... Be6 {[%clk 0:02:49]} 9. Nd5 {[%clk 0:02:56.5]} 9... Qd7 {[%clk 0:02:46.1]}
10. Nxe7+ {[%clk 0:02:41.6]} 10... Nxe7 {[%clk 0:02:42.4]} 11. exf5 {[%clk
0:02:40.2]} 11... Bxf5 {[%clk 0:02:36]} 12. Bxb7 {[%clk 0:02:40.4]} 12... Bh3
{[%clk 0:02:36.1]} 13. Bg2 {[%clk 0:02:40.1]} 13... Ng6 {[%clk 0:02:25.9]} 14.
Nc3 {[%clk 0:02:35.9]} 14... Bxg2 {[%clk 0:01:55.9]} 15. Kxg2 {[%clk 0:02:34.3]}
15... Ng4 {[%clk 0:01:43.3]} 16. h3 {[%clk 0:02:27.8]} 16... Nxf2 {[%clk
0:01:39.4]} 17. Rxf2 {[%clk 0:02:19.3]} 17... Rxf2+ {[%clk 0:01:40.3]} 18. Kxf2
{[%clk 0:02:19.3]} 18... Qxh3 {[%clk 0:01:41]} 19. Qg1 {[%clk 0:02:17.6]} 19...
Rf8+ {[%clk 0:01:35.5]} 20. Ke2 {[%clk 0:02:05]} 20... Qg4+ {[%clk 0:01:32]} 21.
Kd2 {[%clk 0:02:04.1]} 21... Nh4 {[%clk 0:01:20.4]} 22. Kc2 {[%clk 0:02:02.8]}
22... Nf3 {[%clk 0:01:20.4]} 23. Qe3 {[%clk 0:01:56.6]} 23... Nd4+ {[%clk
0:01:20]} 24. Kb1 {[%clk 0:01:56.6]} 24... Rf3 {[%clk 0:01:00.3]} 25. Qe4 {[%clk
0:01:55.5]} 25... Qxg3 {[%clk 0:01:00.7]} 26. Ne2 {[%clk 0:01:19.8]} 26... Nxe2
{[%clk 0:00:45.8]} 27. Qxe2 {[%clk 0:01:20.7]} 27... Rxd3 {[%clk 0:00:45.1]} 28.
a4 {[%clk 0:01:13.8]} 28... Qf3 {[%clk 0:00:40.9]} 29. Qc2 {[%clk 0:01:08]}
29... h5 {[%clk 0:00:33.8]} 30. Ka2 {[%clk 0:00:50.2]} 30... h4 {[%clk
0:00:33.5]} 31. Bg5 {[%clk 0:00:49.1]} 31... h3 {[%clk 0:00:33.7]} 32. Rg1
{[%clk 0:00:41.4]} 32... Qe4 {[%clk 0:00:22]} 33. b3 {[%clk 0:00:36.3]} 33...
Rd4 {[%clk 0:00:14.9]} 34. Qh2 {[%clk 0:00:22.3]} 34... Rd3 {[%clk 0:00:11.9]}
35. Bh6 {[%clk 0:00:18.3]} 35... g6 {[%clk 0:00:11.2]} 36. Rf1 {[%clk
0:00:13.8]} 36... Rf3 {[%clk 0:00:10.9]} 37. Rxf3 {[%clk 0:00:09.6]} 37... Qxf3
{[%clk 0:00:11.8]} 38. a5 {[%clk 0:00:08.1]} 38... Kh7 {[%clk 0:00:10.6]} 39.
Bd2 {[%clk 0:00:07]} 39... e4 {[%clk 0:00:10.1]} 40. Be1 {[%clk 0:00:05.1]}
40... e3 {[%clk 0:00:08.6]} 41. Ka3 {[%clk 0:00:05.1]} 41... Qg2 {[%clk
0:00:07.9]} 42. Qf4 {[%clk 0:00:05.3]} 42... e2 {[%clk 0:00:07.3]} 43. Qh4+
{[%clk 0:00:05.6]} 43... Kg7 {[%clk 0:00:07.5]} 44. Bc3+ {[%clk 0:00:05.5]}
44... Kf7 {[%clk 0:00:07.6]} 45. Qf6+ {[%clk 0:00:05.6]} 45... Ke8 {[%clk
0:00:08.2]} 46. Qe6+ {[%clk 0:00:05.7]} 46... Kd8 {[%clk 0:00:08.7]} 47. Bf6#
{[%clk 0:00:05]} 1-0

[Event "*** SCC Grand Prix: Titled Tuesday Blitz"]
[Site "Chess.com"]
[Date "2020.07.07"]
[Round "8"]
[White "Eltaj_Safarli"]
[Black "FabianoCaruana"]
[Result "0-1"]
[WhiteElo "2934"]
[BlackElo "3002"]
[TimeControl "180+1"]
[EndTime "11:36:52 PDT"]
[Termination "FabianoCaruana won on time"]

1. e4 {[%clk 0:03:00.9]} 1... e5 {[%clk 0:02:59.7]} 2. Nf3 {[%clk 0:02:59.9]}
2... Nc6 {[%clk 0:03:00.3]} 3. Nc3 {[%clk 0:02:56.8]} 3... Nf6 {[%clk
0:02:59.9]} 4. a3 {[%clk 0:02:57.3]} 4... Be7 {[%clk 0:02:50.5]} 5. d4 {[%clk
0:02:56.5]} 5... exd4 {[%clk 0:02:50.1]} 6. Nxd4 {[%clk 0:02:57.4]} 6... O-O
{[%clk 0:02:50.3]} 7. Nxc6 {[%clk 0:02:57.7]} 7... bxc6 {[%clk 0:02:50.6]} 8. e5
{[%clk 0:02:58.2]} 8... Ne8 {[%clk 0:02:48.8]} 9. Bd3 {[%clk 0:02:58.7]} 9... f6
{[%clk 0:02:41.1]} 10. exf6 {[%clk 0:02:52.4]} 10... Nxf6 {[%clk 0:02:39.3]} 11.
O-O {[%clk 0:02:53.3]} 11... d5 {[%clk 0:02:38.1]} 12. Bg5 {[%clk 0:02:47.7]}
12... Ng4 {[%clk 0:02:36.5]} 13. Bxe7 {[%clk 0:02:44.3]} 13... Qxe7 {[%clk
0:02:37.4]} 14. h3 {[%clk 0:02:33.8]} 14... Ne5 {[%clk 0:02:36.2]} 15. Qh5
{[%clk 0:02:32]} 15... Nxd3 {[%clk 0:02:31.2]} 16. cxd3 {[%clk 0:02:32.9]} 16...
Bf5 {[%clk 0:02:23.3]} 17. d4 {[%clk 0:02:25.5]} 17... Qf6 {[%clk 0:02:23.2]}
18. Rad1 {[%clk 0:02:22.3]} 18... Rae8 {[%clk 0:02:17.8]} 19. Rd2 {[%clk
0:02:15.5]} 19... Re6 {[%clk 0:02:06.8]} 20. Nd1 {[%clk 0:02:05.8]} 20... Re4
{[%clk 0:02:04.4]} 21. Ne3 {[%clk 0:01:58.6]} 21... Bd7 {[%clk 0:01:58.7]} 22.
Qd1 {[%clk 0:01:51.8]} 22... Qg5 {[%clk 0:01:53.5]} 23. Kh2 {[%clk 0:01:46.5]}
23... Rf6 {[%clk 0:01:43]} 24. Nc2 {[%clk 0:01:18.2]} 24... Rg6 {[%clk
0:01:10.2]} 25. Rg1 {[%clk 0:00:56.3]} 25... Rh4 {[%clk 0:01:04.2]} 26. Rd3
{[%clk 0:00:42.3]} 26... Qf4+ {[%clk 0:01:03.4]} 27. Kh1 {[%clk 0:00:39.9]}
27... Bf5 {[%clk 0:00:46.8]} 28. Rf3 {[%clk 0:00:40.1]} 28... Be4 {[%clk
0:00:43.9]} 29. Ne1 {[%clk 0:00:20.6]} 29... Bxf3 {[%clk 0:00:21.4]} 30. Nxf3
{[%clk 0:00:21.5]} 30... Rh5 {[%clk 0:00:21.1]} 31. Qe2 {[%clk 0:00:17.1]} 31...
Qe4 {[%clk 0:00:19.4]} 32. Qxe4 {[%clk 0:00:11.4]} 32... dxe4 {[%clk 0:00:20.3]}
33. Nd2 {[%clk 0:00:12.3]} 33... Rd5 {[%clk 0:00:19.4]} 34. Nxe4 {[%clk
0:00:12.7]} 34... Rxd4 {[%clk 0:00:19.8]} 35. Re1 {[%clk 0:00:13.4]} 35... Re6
{[%clk 0:00:18.2]} 36. f3 {[%clk 0:00:13.9]} 36... Rd2 {[%clk 0:00:18]} 37. b4
{[%clk 0:00:13.9]} 37... Ra2 {[%clk 0:00:17.2]} 38. Rd1 {[%clk 0:00:13.6]} 38...
h6 {[%clk 0:00:16.6]} 39. Kh2 {[%clk 0:00:08.2]} 39... Rg6 {[%clk 0:00:14.4]}
40. Ng3 {[%clk 0:00:07.8]} 40... Rxa3 {[%clk 0:00:13.8]} 41. Rd7 {[%clk
0:00:06.9]} 41... Rb3 {[%clk 0:00:06]} 42. Rxc7 {[%clk 0:00:07.2]} 42... Rxb4
{[%clk 0:00:06.2]} 43. Rxa7 {[%clk 0:00:07.9]} 43... c5 {[%clk 0:00:06]} 44. Rc7
{[%clk 0:00:08.4]} 44... Rc4 {[%clk 0:00:05.7]} 45. Nf5 {[%clk 0:00:05.3]} 45...
Kh7 {[%clk 0:00:06.3]} 46. h4 {[%clk 0:00:03.2]} 46... Rc2 {[%clk 0:00:05.9]}
47. Ne3 {[%clk 0:00:02.7]} 47... Re2 {[%clk 0:00:06.1]} 0-1

[Event "*** SCC Grand Prix: Titled Tuesday Blitz"]
[Site "Chess.com"]
[Date "2020.07.07"]
[Round "8"]
[White "Lucas_Tomiello"]
[Black "m_ezat"]
[Result "1-0"]
[WhiteElo "2430"]
[BlackElo "2521"]
[TimeControl "180+1"]
[EndTime "11:36:52 PDT"]
[Termination "Lucas_Tomiello won by checkmate"]

1. e4 {[%clk 0:03:00.9]} 1... g6 {[%clk 0:02:56.3]} 2. d4 {[%clk 0:03:00.6]}
2... Bg7 {[%clk 0:02:56.2]} 3. Nc3 {[%clk 0:02:59.7]} 3... c6 {[%clk 0:02:56.2]}
4. g3 {[%clk 0:02:52.8]} 4... d5 {[%clk 0:02:55.9]} 5. e5 {[%clk 0:02:52.7]}
5... h5 {[%clk 0:02:51.6]} 6. h3 {[%clk 0:02:50.3]} 6... Nh6 {[%clk 0:02:50.8]}
7. Bg2 {[%clk 0:02:49.8]} 7... Nf5 {[%clk 0:02:50.4]} 8. Nge2 {[%clk 0:02:48.1]}
8... Nd7 {[%clk 0:02:42.9]} 9. O-O {[%clk 0:02:41.9]} 9... Nf8 {[%clk
0:02:42.5]} 10. Nf4 {[%clk 0:02:29.8]} 10... Ne6 {[%clk 0:02:41.7]} 11. Nce2
{[%clk 0:02:28.3]} 11... Bh6 {[%clk 0:02:37.7]} 12. Nxe6 {[%clk 0:02:26.3]}
12... Bxe6 {[%clk 0:02:37.1]} 13. Bxh6 {[%clk 0:02:25.1]} 13... Rxh6 {[%clk
0:02:36.4]} 14. Nf4 {[%clk 0:02:25.2]} 14... Qb6 {[%clk 0:02:36.7]} 15. Nxe6
{[%clk 0:02:11.7]} 15... fxe6 {[%clk 0:02:36]} 16. c3 {[%clk 0:02:12]} 16...
Qxb2 {[%clk 0:02:27.2]} 17. Qd3 {[%clk 0:01:58.5]} 17... Qb5 {[%clk 0:02:26.9]}
18. Qf3 {[%clk 0:01:56.3]} 18... Qb6 {[%clk 0:02:15.7]} 19. Rfb1 {[%clk
0:01:55.3]} 19... Qc7 {[%clk 0:02:15.9]} 20. Qf4 {[%clk 0:01:52.5]} 20... Kd7
{[%clk 0:01:50.6]} 21. g4 {[%clk 0:01:37.1]} 21... hxg4 {[%clk 0:01:46.1]} 22.
hxg4 {[%clk 0:01:38]} 22... Rh4 {[%clk 0:01:28.1]} 23. Qg5 {[%clk 0:01:38]}
23... Rah8 {[%clk 0:01:26.3]} 24. gxf5 {[%clk 0:01:37.7]} 24... gxf5 {[%clk
0:01:26.9]} 25. Kf1 {[%clk 0:01:28.7]} 25... Rg4 {[%clk 0:00:38.5]} 26. Qd2
{[%clk 0:01:17.3]} 26... Kc8 {[%clk 0:00:34.6]} 27. Bf3 {[%clk 0:01:14.2]} 27...
Rgh4 {[%clk 0:00:30.4]} 28. Ke2 {[%clk 0:01:12.7]} 28... Qa5 {[%clk 0:00:30.6]}
29. Rh1 {[%clk 0:00:53]} 29... Rh3 {[%clk 0:00:25.5]} 30. Rxh3 {[%clk
0:00:52.3]} 30... Rxh3 {[%clk 0:00:25.3]} 31. Rh1 {[%clk 0:00:52.1]} 31... Qa6+
{[%clk 0:00:25.3]} 32. Ke3 {[%clk 0:00:51.3]} 32... Rxh1 {[%clk 0:00:19.3]} 33.
Bxh1 {[%clk 0:00:52.2]} 33... Qf1 {[%clk 0:00:19.2]} 34. Bf3 {[%clk 0:00:49.2]}
34... Qh3 {[%clk 0:00:19.7]} 35. Qe2 {[%clk 0:00:44.7]} 35... Kc7 {[%clk
0:00:18.2]} 36. Kd3 {[%clk 0:00:44.2]} 36... Qh6 {[%clk 0:00:17.3]} 37. Kc2
{[%clk 0:00:44]} 37... Qf4 {[%clk 0:00:16.2]} 38. Kb2 {[%clk 0:00:44.2]} 38...
b5 {[%clk 0:00:14.6]} 39. Bh5 {[%clk 0:00:41.6]} 39... a5 {[%clk 0:00:13.6]} 40.
Bf7 {[%clk 0:00:40.8]} 40... Kd7 {[%clk 0:00:13.1]} 41. a4 {[%clk 0:00:32.9]}
41... bxa4 {[%clk 0:00:08.4]} 42. Bh5 {[%clk 0:00:29.4]} 42... Kc7 {[%clk
0:00:02.7]} 43. Bf7 {[%clk 0:00:23.9]} 43... Kb6 {[%clk 0:00:01.9]} 44. Bxe6
{[%clk 0:00:22.4]} 44... a3+ {[%clk 0:00:02.6]} 45. Kxa3 {[%clk 0:00:20.6]}
45... Kc7 {[%clk 0:00:03.4]} 46. Qb2 {[%clk 0:00:19.2]} 46... Qe4 {[%clk
0:00:03.1]} 47. Ka4 {[%clk 0:00:16.7]} 47... Qd3 {[%clk 0:00:03.7]} 48. Kxa5
{[%clk 0:00:16.4]} 48... Qc4 {[%clk 0:00:03.2]} 49. Qb6# {[%clk 0:00:16.5]} 1-0

[Event "*** SCC Grand Prix: Titled Tuesday Blitz"]
[Site "Chess.com"]
[Date "2020.07.07"]
[Round "8"]
[White "sm_sharon"]
[Black "ambaixador"]
[Result "0-1"]
[WhiteElo "2169"]
[BlackElo "2319"]
[TimeControl "180+1"]
[EndTime "11:36:52 PDT"]
[Termination "ambaixador won by resignation"]

1. d4 {[%clk 0:03:00.9]} 1... d5 {[%clk 0:02:58.5]} 2. Bf4 {[%clk 0:03:01.1]}
2... e6 {[%clk 0:02:58.4]} 3. e3 {[%clk 0:03:01.3]} 3... Bd6 {[%clk 0:02:58.8]}
4. Bg3 {[%clk 0:03:00.4]} 4... Ne7 {[%clk 0:02:58.3]} 5. Nf3 {[%clk 0:02:57.6]}
5... c5 {[%clk 0:02:57.9]} 6. c3 {[%clk 0:02:57.3]} 6... Nbc6 {[%clk 0:02:57.7]}
7. Bd3 {[%clk 0:02:56.8]} 7... Ng6 {[%clk 0:02:57.5]} 8. Nbd2 {[%clk 0:02:56.4]}
8... Qe7 {[%clk 0:02:57.6]} 9. Bxd6 {[%clk 0:02:40.6]} 9... Qxd6 {[%clk
0:02:58.5]} 10. O-O {[%clk 0:02:40.8]} 10... O-O {[%clk 0:02:56.7]} 11. Re1
{[%clk 0:02:40.4]} 11... e5 {[%clk 0:02:51.9]} 12. dxe5 {[%clk 0:02:40.3]} 12...
Ngxe5 {[%clk 0:02:50.4]} 13. Nxe5 {[%clk 0:02:40.6]} 13... Nxe5 {[%clk
0:02:51.3]} 14. Nf3 {[%clk 0:02:39.9]} 14... Bg4 {[%clk 0:02:45.3]} 15. Be2
{[%clk 0:02:39.5]} 15... Be6 {[%clk 0:02:20.7]} 16. Nxe5 {[%clk 0:02:37.6]}
16... Qxe5 {[%clk 0:02:21.6]} 17. Bf3 {[%clk 0:02:37.4]} 17... Rfd8 {[%clk
0:02:20.7]} 18. Qc2 {[%clk 0:02:36.1]} 18... g6 {[%clk 0:02:17.4]} 19. Rad1
{[%clk 0:02:35.3]} 19... h5 {[%clk 0:02:16.5]} 20. h4 {[%clk 0:02:32.8]} 20...
Rd6 {[%clk 0:02:11.4]} 21. g3 {[%clk 0:02:32.9]} 21... Rad8 {[%clk 0:02:11.1]}
22. Rd2 {[%clk 0:02:27.4]} 22... d4 {[%clk 0:02:01.2]} 23. cxd4 {[%clk 0:02:22]}
23... cxd4 {[%clk 0:02:02.1]} 24. e4 {[%clk 0:01:47.7]} 24... d3 {[%clk
0:01:52.8]} 25. Qa4 {[%clk 0:01:44.7]} 25... Qc5 {[%clk 0:01:33.1]} 26. e5
{[%clk 0:01:18.8]} 26... Rd4 {[%clk 0:01:32.2]} 27. Qd1 {[%clk 0:01:11.3]} 27...
b5 {[%clk 0:01:17.7]} 28. b3 {[%clk 0:01:06.3]} 28... a5 {[%clk 0:01:09.2]} 29.
Re3 {[%clk 0:01:05.7]} 29... Bf5 {[%clk 0:01:00.1]} 30. Bg2 {[%clk 0:01:05.6]}
30... a4 {[%clk 0:00:54]} 31. Bf1 {[%clk 0:01:00.7]} 31... a3 {[%clk 0:00:45.7]}
32. Kh2 {[%clk 0:00:50.6]} 32... Qd5 {[%clk 0:00:20.3]} 33. Bg2 {[%clk
0:00:46.8]} 33... Qe6 {[%clk 0:00:19.4]} 34. Qf1 {[%clk 0:00:41.8]} 34... Qc8
{[%clk 0:00:17.7]} 35. Bh3 {[%clk 0:00:40.3]} 35... Bxh3 {[%clk 0:00:16.6]} 36.
Qxh3 {[%clk 0:00:41.2]} 36... Qc1 {[%clk 0:00:16.4]} 37. e6 {[%clk 0:00:26.5]}
37... Qxd2 {[%clk 0:00:15.7]} 38. exf7+ {[%clk 0:00:26.7]} 38... Kg7 {[%clk
0:00:14.8]} 39. Kg2 {[%clk 0:00:19.4]} 39... R4d7 {[%clk 0:00:12.5]} 40. f8=Q+
{[%clk 0:00:18.4]} 40... Kxf8 {[%clk 0:00:09.6]} 41. Qe6 {[%clk 0:00:18.6]}
41... Qc3 {[%clk 0:00:09.1]} 42. Qxg6 {[%clk 0:00:18.3]} 42... Qg7 {[%clk
0:00:09.2]} 43. Rf3+ {[%clk 0:00:16.7]} 43... Kg8 {[%clk 0:00:09.6]} 44. Qe6+
{[%clk 0:00:17.2]} 44... Kh7 {[%clk 0:00:09.1]} 45. Rf6 {[%clk 0:00:17.6]} 45...
Rd6 {[%clk 0:00:08.9]} 46. Qf5+ {[%clk 0:00:17.7]} 46... Kg8 {[%clk 0:00:08.3]}
47. Rxd6 {[%clk 0:00:16.2]} 47... Rxd6 {[%clk 0:00:09.2]} 48. Qxh5 {[%clk
0:00:16.4]} 48... Qf7 {[%clk 0:00:08.5]} 49. Qg5+ {[%clk 0:00:15.8]} 49... Kf8
{[%clk 0:00:08.1]} 50. Qf4 {[%clk 0:00:15.8]} 50... Qxf4 {[%clk 0:00:07.8]} 51.
gxf4 {[%clk 0:00:16.2]} 51... d2 {[%clk 0:00:08.7]} 0-1

[Event "*** SCC Grand Prix: Titled Tuesday Blitz"]
[Site "Chess.com"]
[Date "2020.07.07"]
[Round "8"]
[White "bratkoo"]
[Black "mortngabriel"]
[Result "1/2-1/2"]
[WhiteElo "2436"]
[BlackElo "2328"]
[TimeControl "180+1"]
[EndTime "11:36:53 PDT"]
[Termination "Game drawn by stalemate"]

1. e4 {[%clk 0:03:00.5]} 1... g6 {[%clk 0:02:59.7]} 2. d4 {[%clk 0:03:00.2]}
2... Bg7 {[%clk 0:03:00.6]} 3. Nc3 {[%clk 0:03:00.6]} 3... c6 {[%clk 0:03:00.5]}
4. f4 {[%clk 0:03:00.7]} 4... d5 {[%clk 0:03:00.7]} 5. e5 {[%clk 0:03:01.4]}
5... h5 {[%clk 0:02:59.2]} 6. Bd3 {[%clk 0:03:00.3]} 6... Nh6 {[%clk 0:02:57.4]}
7. Nf3 {[%clk 0:02:59.8]} 7... Bf5 {[%clk 0:02:53.7]} 8. Ne2 {[%clk 0:02:58.1]}
8... Bxd3 {[%clk 0:02:51.5]} 9. Qxd3 {[%clk 0:02:58.6]} 9... Nf5 {[%clk
0:02:52.4]} 10. O-O {[%clk 0:02:57.1]} 10... e6 {[%clk 0:02:51.8]} 11. c4 {[%clk
0:02:51.7]} 11... O-O {[%clk 0:02:50.1]} 12. h3 {[%clk 0:02:50.7]} 12... h4
{[%clk 0:02:49.5]} 13. Be3 {[%clk 0:02:50.1]} 13... dxc4 {[%clk 0:02:46.9]} 14.
Qd2 {[%clk 0:02:50.4]} 14... b5 {[%clk 0:02:41.7]} 15. Bf2 {[%clk 0:02:50.7]}
15... Nd7 {[%clk 0:02:42.1]} 16. Ng5 {[%clk 0:02:49.2]} 16... Nb6 {[%clk
0:02:39]} 17. Rfd1 {[%clk 0:02:48.9]} 17... Nd5 {[%clk 0:02:37]} 18. Nc3 {[%clk
0:02:41.3]} 18... Nxc3 {[%clk 0:02:25.8]} 19. bxc3 {[%clk 0:02:41.8]} 19... Bh6
{[%clk 0:02:15.3]} 20. Ne4 {[%clk 0:02:39.4]} 20... Bg7 {[%clk 0:02:07.9]} 21.
Qe1 {[%clk 0:02:36.3]} 21... Qd5 {[%clk 0:02:06.3]} 22. Rd2 {[%clk 0:02:23.4]}
22... a5 {[%clk 0:02:05.6]} 23. Re2 {[%clk 0:02:23.3]} 23... Qd8 {[%clk
0:01:41.9]} 24. Ng5 {[%clk 0:02:18.2]} 24... b4 {[%clk 0:01:36.3]} 25. Bxh4
{[%clk 0:02:15.5]} 25... bxc3 {[%clk 0:01:28.7]} 26. g4 {[%clk 0:02:13.4]} 26...
Qxd4+ {[%clk 0:01:16.8]} 27. Kh1 {[%clk 0:02:05.5]} 27... Nxh4 {[%clk
0:01:00.7]} 28. Qxh4 {[%clk 0:02:06.1]} 28... Rfd8 {[%clk 0:01:01.6]} 29. Rf1
{[%clk 0:02:01.2]} 29... Qd3 {[%clk 0:00:51.1]} 30. Ref2 {[%clk 0:01:58.8]}
30... c2 {[%clk 0:00:45.2]} 31. f5 {[%clk 0:01:58.7]} 31... exf5 {[%clk
0:00:29.6]} 32. gxf5 {[%clk 0:01:58.5]} 32... Qxf1+ {[%clk 0:00:11.2]} 33. Rxf1
{[%clk 0:01:56.8]} 33... Rd1 {[%clk 0:00:12.1]} 34. Qxc4 {[%clk 0:01:50.6]}
34... c1=Q {[%clk 0:00:09.8]} 35. Qxc1 {[%clk 0:01:17.9]} 35... Rxc1 {[%clk
0:00:10.7]} 36. Rxc1 {[%clk 0:01:17.9]} 36... Bh6 {[%clk 0:00:11.6]} 37. h4
{[%clk 0:01:13]} 37... Bxg5 {[%clk 0:00:11.5]} 38. hxg5 {[%clk 0:01:13]} 38...
gxf5 {[%clk 0:00:12.4]} 39. Rxc6 {[%clk 0:01:13.2]} 39... Re8 {[%clk 0:00:11.7]}
40. Rc5 {[%clk 0:01:13.6]} 40... Kg7 {[%clk 0:00:12.1]} 41. Rxa5 {[%clk
0:01:12.8]} 41... Kg6 {[%clk 0:00:12.6]} 42. Kg2 {[%clk 0:01:13.5]} 42... Re6
{[%clk 0:00:12.1]} 43. Kf3 {[%clk 0:01:13.3]} 43... Kxg5 {[%clk 0:00:13]} 44.
Rd5 {[%clk 0:01:11.6]} 44... f6 {[%clk 0:00:13.3]} 45. exf6 {[%clk 0:01:10.1]}
45... Rxf6 {[%clk 0:00:14.2]} 46. a4 {[%clk 0:01:10.3]} 46... Rb6 {[%clk
0:00:13.5]} 47. a5 {[%clk 0:01:10.8]} 47... Rb3+ {[%clk 0:00:13.5]} 48. Ke2
{[%clk 0:01:11.2]} 48... Ra3 {[%clk 0:00:14.1]} 49. Kf2 {[%clk 0:01:07.6]} 49...
Kg4 {[%clk 0:00:12.7]} 50. Rd8 {[%clk 0:00:56.1]} 50... Ra2+ {[%clk 0:00:10.5]}
51. Kf1 {[%clk 0:00:55]} 51... Rxa5 {[%clk 0:00:10.2]} 52. Rd3 {[%clk
0:00:54.8]} 52... Ra2 {[%clk 0:00:08.8]} 53. Rb3 {[%clk 0:00:54.7]} 53... Rh2
{[%clk 0:00:08.5]} 54. Ra3 {[%clk 0:00:53.4]} 54... Rh3 {[%clk 0:00:08.7]} 55.
Rxh3 {[%clk 0:00:30.8]} 55... Kxh3 {[%clk 0:00:08.6]} 56. Kf2 {[%clk 0:00:31.4]}
56... Kg4 {[%clk 0:00:07.7]} 57. Kg2 {[%clk 0:00:31.8]} 57... Kf4 {[%clk
0:00:06.2]} 58. Kf2 {[%clk 0:00:32.1]} 58... Ke4 {[%clk 0:00:07]} 59. Ke2 {[%clk
0:00:32.5]} 59... f4 {[%clk 0:00:06.9]} 60. Kf2 {[%clk 0:00:32.7]} 60... f3
{[%clk 0:00:07.8]} 61. Kf1 {[%clk 0:00:31.5]} 61... Kf4 {[%clk 0:00:08.7]} 62.
Kf2 {[%clk 0:00:31.9]} 62... Kg4 {[%clk 0:00:09.6]} 63. Kf1 {[%clk 0:00:32.3]}
63... Kg3 {[%clk 0:00:10.5]} 64. Kg1 {[%clk 0:00:32.5]} 64... f2+ {[%clk
0:00:11.3]} 65. Kf1 {[%clk 0:00:32.9]} 65... Kf3 {[%clk 0:00:12]} 1/2-1/2